bitfinex/quotes_ETHUSD_20241217
["timestamp","ask_amount","ask_price","bid_price","bid_amount"]
[1734445112167,1.89241662,3993.3,3992.6,0.8281]
[1734445112369,0.85737223,3993.2,3992.8,0.8281]
[1734445112564,1.03504439,3993.5,3992.8,0.8281]
[1734445113112,1.03504439,3993.4,3992.8,0.8281]
[1734445113860,1.03504439,3993.5,3992.8,0.8281]
[1734445114213,3.17925654,3993.5,3992.8,0.8281]
[1734445114409,3.17925654,3993.5,3992.7,0.67161447]
[1734445114410,1.03504439,3993.6,3992.9,0.14997145]
[1734445114566,0.85794028,3993.5,3993.0,0.8231]
[1734445114766,1.03504439,3993.7,3993.0,0.8231]
[1734445114969,1.03504439,3993.6,3993.0,0.8231]
[1734445115416,1.55256659,3993.8,3993.0,0.8231]
[1734445115417,1.03504439,3993.7,3993.0,0.8231]
[1734445115716,3.18005635,3993.6,3993.0,0.8231]
[1734445115921,8.27497659,3994.9,3993.0,0.8231]
[1734445115922,1.03504439,3993.7,3993.0,0.8231]
[1734445116064,1.55256659,3993.9,3993.2,0.8231]
[1734445116065,1.03504439,3993.9,3993.2,0.8231]
[1734445116803,2.14532497,3993.9,3993.2,0.8231]
[1734445117102,1.03504439,3994.3,3993.5,0.8231]
[1734445117261,1.03504439,3994.3,3993.9,2.88804467]
[1734445117465,1.03504439,3994.7,3994.1,0.8231]
[1734445117717,1.03504439,3994.7,3994.6,0.8231]
[1734445118002,3.85876644,3995.5,3994.6,0.8231]
[1734445118003,1.03504439,3995.9,3994.6,2.34228717]
[1734445118207,1.03504439,3995.9,3994.7,3.0]
[1734445118371,3.63196121,3996.0,3994.7,3.0]
[1734445118372,2.6670056,3996.0,3995.4,2.34228717]
[1734445118568,2.6670056,3996.0,3995.5,0.8231]
[1734445118887,1.55256659,3996.1,3995.5,0.8231]
[1734445121400,1.55256659,3996.1,3995.6,0.37054237]
[1734445121608,1.55256659,3996.1,3996.0,0.8231]
[1734445122789,1.50256659,3996.1,3996.0,0.8231]
[1734445123430,2.07008879,3996.3,3996.0,0.8231]
[1734445123725,2.5021,3996.7,3996.0,0.8231]
[1734445123890,2.5021,3996.7,3995.0,0.8231]
[1734445124732,0.8237,3996.7,3995.0,0.8231]
[1734445125098,0.8237,3996.7,3995.0,3.8231]
[1734445125292,0.8237,3996.7,3995.0,0.8231]
[1734445125554,3.3258,3996.7,3995.0,0.8231]
[1734445126232,3.0,3997.2,3995.0,0.8231]
[1734445126385,0.8055,3997.3,3995.5,0.8269]
[1734445126886,3.8055,3997.3,3995.5,0.8269]
[1734445127228,0.55,3997.2,3995.5,0.8269]
[1734445130836,3.05175,3997.2,3995.5,0.8269]
[1734445130983,0.55,3997.2,3995.7,0.8269]
[1734445131628,0.8055,3997.3,3995.7,0.8269]
[1734445131788,2.62877916,3997.7,3995.7,0.8269]
[1734445131789,1.3555,3997.6,3995.7,0.8269]
[1734445133293,0.55,3997.7,3995.7,0.8269]
[1734445133498,3.5308658,3997.8,3995.9,0.795]
[1734445133913,1.0294958,3997.8,3995.9,0.795]
[1734445134122,2.50163,3997.4,3995.9,0.795]
[1734445134500,2.50151,3997.6,3995.9,0.795]
[1734445134905,0.55,3997.8,3995.9,0.795]
[1734445135195,3.05138,3997.8,3995.9,0.795]
[1734445135582,2.50162,3997.5,3995.9,0.795]
[1734445136017,2.50165,3997.4,3995.9,0.795]
[1734445136417,0.55,3997.8,3995.9,0.795]
[1734445136942,2.50144,3997.7,3995.9,0.795]
[1734445137294,2.50162,3997.4,3995.9,0.795]
[1734445137698,5.93374365,3997.8,3995.9,0.795]
[1734445137954,2.50189,3997.0,3995.9,0.795]
[1734445138246,2.50143,3997.7,3995.9,0.795]
[1734445138538,3.43232365,3997.8,3995.9,0.795]
[1734445138539,0.55,3997.4,3995.9,0.795]
[1734445138926,0.8171,3997.9,3996.1,2.88232365]
[1734445139098,0.8171,3997.9,3995.8,3.0]
[1734445139099,2.50111,3998.3,3996.6,0.795]
[1734445139296,2.50111,3998.3,3996.7,0.795]
[1734445140367,0.999758,3998.6,3996.3,3.0]
[1734445140368,2.50081,3998.7,3997.1,0.795]
[1734445140505,2.50082,3998.7,3997.1,0.795]
[1734445140937,2.50087,3998.6,3997.1,0.795]
[1734445141560,0.55,3998.8,3997.1,0.795]
[1734445142264,2.50094,3998.5,3997.1,0.795]
[1734445142415,0.55,3998.8,3997.1,0.795]
[1734445142416,2.50112,3998.2,3997.1,0.795]
[1734445142610,2.50135,3997.9,3997.1,0.795]
[1734445142846,0.55,3998.4,3997.1,0.795]
[1734445143011,2.50131,3997.9,3997.1,0.795]
[1734445143224,3.0,3998.8,3997.1,0.795]
[1734445143225,0.8129,3998.6,3997.1,0.795]
[1734445143824,0.55,3998.5,3997.1,0.795]
[1734445144245,3.31383,3998.6,3997.1,0.795]
[1734445144499,2.50093,3998.6,3997.1,0.795]
[1734445144913,2.50102,3998.4,3997.1,0.795]
[1734445145114,2.50108,3998.3,3997.1,0.795]
[1734445145316,2.50113,3998.2,3997.1,0.795]
[1734445145548,2.50102,3998.4,3997.1,0.795]
[1734445145852,2.50107,3998.3,3997.1,0.795]
[1734445146059,0.55,3998.2,3997.1,0.795]
[1734445146414,0.55,3998.7,3997.1,0.795]
[1734445146666,2.50101,3998.4,3997.1,0.795]
[1734445146830,0.55,3998.3,3997.1,0.795]
[1734445147656,3.8129,3999.2,3997.2,0.02501856]
[1734445147864,3.8129,3999.2,3997.3,0.8042]
[1734445148015,2.50063,3999.0,3997.3,0.8042]
[1734445148523,4.84070569,3999.3,3997.3,0.8042]
[1734445148711,2.50051,3999.2,3997.3,0.8042]
[1734445148910,0.999566,3999.3,3997.4,2.36523901]
[1734445149165,3.31326,3999.5,3997.6,0.8042]
[1734445149370,4.5291488,3999.7,3997.9,0.8042]
[1734445149517,2.0289588,3999.7,3998.0,0.8042]
[1734445149711,1.0294958,3999.7,3998.0,0.8042]
[1734445150015,2.50027,3999.6,3998.0,0.8042]
[1734445150332,2.50055,3999.2,3998.0,0.8042]
[1734445151354,2.50058,3999.1,3998.0,0.8042]
[1734445151656,2.50044,3999.3,3998.0,0.8042]
[1734445151866,2.50052,3999.2,3998.0,0.8042]
[1734445152237,0.55,3999.6,3998.0,0.8042]
[1734445152455,2.50063,3999.0,3998.0,0.8042]
[1734445152759,0.55,3999.6,3998.0,0.8042]
[1734445152760,2.50045,3999.3,3998.0,0.8042]
[1734445152965,2.50057,3999.1,3998.0,0.8042]
[1734445154175,3.05029,3999.6,3998.0,0.8042]
[1734445154332,2.5008,3998.8,3998.0,0.8042]
[1734445154672,3.05029,3999.6,3998.0,0.8042]
[1734445154673,2.50089,3998.6,3998.0,0.8042]
[1734445155184,2.50095,3998.5,3998.0,0.8042]
[1734445155331,2.50068,3998.9,3998.0,0.8042]
[1734445155685,2.50112,3998.3,3998.0,0.8042]
[1734445155826,2.50112,3998.3,3996.6,2.34022569]
[1734445155827,2.50125,3998.0,3996.7,0.8042]
[1734445156330,3.3139,3998.4,3996.7,0.8042]
[1734445156331,2.5012,3998.1,3996.7,0.8042]
[1734445156536,0.55,3998.3,3996.7,0.8042]
[1734445157343,2.50112,3998.2,3996.7,0.8042]
[1734445157544,2.50122,3998.1,3996.7,0.8042]
[1734445157924,0.55,3998.3,3996.7,0.8042]
[1734445158165,2.50144,3997.7,3996.7,0.8042]
[1734445158338,0.55,3998.3,3996.7,0.8042]
[1734445158540,0.55,3998.1,3996.7,0.8042]
[1734445158736,2.50143,3997.8,3996.7,0.8042]
[1734445160876,1.0294958,3997.9,3996.7,0.8042]
[1734445161046,0.55,3997.6,3996.7,0.8042]
[1734445161444,0.85525951,3997.5,3996.7,0.8042]
[1734445161663,3.5309958,3997.6,3996.7,0.8042]
[1734445161970,5.67025044,3997.5,3996.7,0.8042]
[1734445162174,0.55,3997.6,3996.7,0.8042]
[1734445162359,2.50156,3997.5,3996.7,0.8042]
[1734445162532,3.1711943,3997.4,3996.7,0.8042]
[1734445162737,3.1711943,3997.3,3996.7,0.8042]
[1734445162936,3.5313858,3997.0,3996.7,0.8042]
[1734445163138,2.1416985,3996.9,3996.7,0.8042]
[1734445163381,0.8566794,3996.8,3996.7,0.8042]
[1734445163584,1.0294958,3996.8,3995.5,0.8235]
[1734445163893,1.0294958,3996.7,3995.5,0.8235]
[1734445164040,3.17208616,3996.7,3995.5,0.8235]
[1734445164239,1.71450078,3997.0,3995.7,0.8235]
[1734445164240,0.8566794,3996.6,3995.7,0.8235]
[1734445164486,1.0294958,3996.8,3995.7,0.8235]
[1734445165978,3.17278407,3996.7,3995.7,0.8235]
[1734445166142,2.14328827,3996.6,3995.7,0.8235]
[1734445166357,2.14347769,3996.5,3995.7,0.8235]
[1734445166554,3.17297349,3996.4,3995.7,0.8235]
[1734445166758,2.31565818,3996.3,3995.7,0.8235]
[1734445166965,2.14356021,3996.2,3995.7,0.8235]
[1734445167143,1.0294958,3996.3,3995.7,0.8235]
[1734445167787,3.17307086,3996.2,3995.7,0.8235]
[1734445167942,2.31564084,3996.1,3995.7,0.8235]
[1734445168142,4.81810084,3996.1,3995.7,0.8235]
[1734445168467,2.50256,3995.9,3994.3,0.8235]
[1734445168789,1.28614504,3995.8,3994.3,0.8235]
[1734445168953,2.14357506,3995.8,3994.3,0.8235]
[1734445169159,2.14357506,3995.8,3994.2,2.34022569]
[1734445169160,2.14357506,3995.7,3994.5,0.8235]
[1734445169348,1.0294958,3995.8,3994.5,0.8235]
[1734445169349,0.85743002,3995.6,3994.5,0.8235]
[1734445169703,1.0294958,3995.8,3994.5,0.8235]
[1734445169704,1.0294958,3995.7,3994.5,0.8235]
[1734445170005,3.36972149,3995.6,3994.5,0.8235]
[1734445170145,2.50306,3995.1,3994.5,0.8235]
[1734445170794,0.85585857,3995.0,3994.5,0.8235]
[1734445171215,1.0294958,3995.1,3994.5,0.8235]
[1734445171378,2.5032,3994.9,3994.5,0.8235]
[1734445171726,2.5032,3994.9,3993.4,0.8235]
[1734445171869,0.85540508,3994.8,3993.4,0.8235]
[1734445172063,0.85540508,3994.8,3993.5,1.07007257]
[1734445172303,0.85540508,3994.8,3993.5,0.7537]
[1734445172470,2.5032,3994.9,3993.5,0.7537]
[1734445172471,0.85495599,3994.7,3993.5,0.7537]
[1734445172804,1.0294958,3994.9,3993.5,0.7537]
[1734445172963,1.0294958,3994.8,3993.5,0.7537]
[1734445173368,3.16700643,3994.7,3993.5,0.7537]
[1734445173568,1.54339528,3994.9,3993.5,0.7537]
[1734445173569,1.0294958,3994.9,3993.5,0.7537]
[1734445173991,1.0294958,3994.9,3993.6,0.7537]
[1734445174228,0.85441915,3994.8,3993.9,2.88557314]
[1734445174379,0.85441915,3994.8,3994.0,0.7537]
[1734445174725,3.5321158,3995.9,3994.1,0.7537]
[1734445174863,2.13630705,3995.8,3994.3,0.7537]
[1734445175062,0.85452282,3995.7,3994.3,0.7537]
[1734445175513,2.50262,3995.9,3994.3,0.7537]
[1734445175715,0.85432566,3995.8,3994.3,0.7537]
[1734445176014,0.55,3995.8,3994.3,0.7537]
[1734445176170,0.55,3995.8,3994.4,0.89546273]
[1734445176768,0.55,3995.9,3994.4,0.89546273]
[1734445177020,0.55,3996.0,3994.4,0.89546273]
[1734445177220,0.55,3996.1,3994.4,0.89546273]
[1734445177419,0.55,3996.2,3994.4,0.89546273]
[1734445177717,0.55,3996.0,3994.6,0.7537]
[1734445178085,0.55,3996.2,3994.6,0.7537]
[1734445178494,3.05239,3996.2,3994.6,0.7537]
[1734445178711,0.85394085,3996.1,3994.6,0.7537]
[1734445178892,0.55,3996.0,3994.6,0.7537]
[1734445179084,2.50244,3996.1,3994.6,0.7537]
[1734445179281,0.55,3996.0,3994.6,0.7537]
[1734445179696,0.55,3995.9,3994.6,0.7537]
[1734445180398,0.55,3996.1,3994.6,0.7537]
[1734445180604,0.55,3996.2,3994.6,0.7537]
[1734445180914,1.0294958,3996.4,3994.5,0.155939]
[1734445180915,0.7537,3996.4,3994.8,0.7537]
[1734445181112,2.57289108,3996.6,3994.9,0.36392731]
[1734445181415,0.804,3996.7,3995.0,0.7537]
[1734445181416,2.13401075,3996.5,3995.0,0.7537]
[1734445181613,2.50204,3996.8,3995.0,0.7537]
[1734445181614,1.0294958,3996.8,3995.0,0.7537]
[1734445181922,3.16339015,3996.8,3995.0,0.7537]
[1734445182073,2.13389435,3996.8,3995.5,2.88557314]
[1734445182273,1.0294958,3997.2,3995.7,0.7537]
[1734445182473,1.54339528,3997.4,3996.0,0.7537]
[1734445182786,1.0294958,3997.7,3995.6,3.28855731]
[1734445182787,1.0294958,3997.7,3996.3,2.88557314]
[1734445183117,1.0294958,3997.7,3996.4,0.7537]
[1734445183420,0.85360858,3997.9,3996.4,0.7537]
[1734445183723,2.07008879,3998.5,3996.8,0.7537]
[1734445183724,1.0294958,3998.5,3996.8,0.7537]
[1734445184075,1.0294958,3998.5,3997.1,2.88557314]
[1734445184280,1.0294958,3998.5,3997.2,0.7537]
[1734445184518,1.0294958,3998.5,3997.2,0.76849368]
[1734445185318,1.0294958,3998.5,3997.2,0.7537]
[1734445186523,3.5304558,3998.5,3997.2,0.7537]
[1734445187101,1.0294958,3998.5,3997.2,0.7537]
[1734445189482,2.501,3998.4,3997.2,0.7537]
[1734445191828,1.5794958,3998.6,3997.2,0.7537]
[1734445192151,0.55,3998.4,3997.2,0.7537]
[1734445192423,1.5794958,3998.5,3997.2,0.7537]
[1734445192587,0.55,3998.3,3997.2,0.7537]
[1734445193011,0.55,3998.5,3997.2,0.7537]
[1734445193519,0.55,3998.2,3997.2,0.7537]
[1734445194303,0.55,3998.5,3997.2,0.7537]
[1734445194504,0.55,3998.6,3997.2,0.7537]
[1734445194790,0.85453354,3998.5,3997.2,0.7537]
[1734445194992,4.57073879,3999.0,3997.2,0.7537]
[1734445194993,2.50065,3999.0,3997.2,0.7537]
[1734445196286,0.55,3998.9,3997.2,0.7537]
[1734445196480,1.5794958,3999.1,3997.2,0.7537]
[1734445196827,0.55,3998.9,3997.2,0.7537]
[1734445197329,2.33968019,3998.7,3997.2,0.7537]
[1734445197527,2.50161,3997.5,3997.2,0.7537]
[1734445197819,0.8237,3998.0,3996.5,0.827]
[1734445197820,2.5017,3997.3,3996.5,0.827]
[1734445198023,0.55,3997.6,3996.5,0.827]
[1734445198329,0.55,3997.4,3996.5,0.827]
[1734445198527,1.8843496,3997.7,3996.5,0.827]
[1734445198820,2.50152,3997.6,3996.5,0.827]
[1734445199488,0.55,3997.7,3996.5,0.827]
[1734445199725,0.55,3997.9,3996.5,0.827]
[1734445199913,2.50144,3997.7,3996.5,0.827]
[1734445200430,2.88145813,3997.4,3995.7,0.827]
[1734445200588,3.05214,3996.6,3995.7,0.827]
[1734445201138,3.84739855,3997.3,3995.7,0.827]
[1734445201139,1.0294958,3996.8,3995.7,0.827]
[1734445201504,0.25728911,3996.8,3995.7,0.827]
[1734445201719,2.50247,3996.1,3995.7,0.827]
[1734445201929,2.50258,3995.9,3995.7,0.827]
[1734445202734,2.50231,3996.3,3995.7,0.827]
[1734445202893,2.50262,3995.8,3995.7,0.827]
[1734445203093,2.5025,3996.1,3995.7,0.827]
[1734445203329,3.18,3996.4,3995.7,0.827]
[1734445203555,2.5027,3995.7,3994.5,3.0]
[1734445203750,2.50256,3996.0,3994.6,0.7836]
[1734445204049,0.55,3996.2,3994.6,0.7836]
[1734445204233,1.0294958,3996.5,3994.9,2.88145813]
[1734445204432,1.0294958,3996.5,3995.1,0.7836]
[1734445205148,2.50226,3996.4,3995.1,0.7836]
[1734445205353,2.50258,3995.9,3995.1,0.7836]
[1734445205851,2.50243,3996.2,3995.1,0.7836]
[1734445207135,1.0294958,3996.5,3995.1,0.7836]
[1734445207339,1.0294958,3996.5,3995.3,0.7836]
[1734445207945,0.55,3996.4,3995.3,0.7836]
[1734445208252,1.5794958,3996.6,3995.3,0.7836]
[1734445208463,2.13830958,3996.5,3995.3,0.7836]
[1734445208679,2.50235,3996.3,3995.3,0.7836]
[1734445208843,0.55,3996.2,3995.3,0.7836]
[1734445209469,1.0294958,3996.6,3995.3,0.7836]
[1734445209470,0.55,3996.5,3995.3,0.7836]
[1734445209888,0.55,3996.4,3995.3,0.7836]
[1734445210667,2.50226,3996.4,3995.3,0.7836]
[1734445210990,4.0294958,3996.7,3995.3,0.7836]
[1734445210991,2.50239,3996.2,3995.3,0.7836]
[1734445211156,1.5794958,3996.6,3995.3,0.7836]
[1734445211157,2.50244,3996.1,3995.3,0.7836]
[1734445211789,4.0816358,3996.6,3995.3,0.7836]
[1734445211941,0.55,3996.4,3995.3,0.7836]
[1734445212141,0.55,3996.5,3995.3,0.7836]
[1734445212349,2.50225,3996.4,3995.3,0.7836]
[1734445212642,1.0294958,3996.7,3995.3,0.7836]
[1734445212886,1.0294958,3997.2,3995.3,0.7836]
[1734445213089,1.0294958,3997.2,3995.0,3.01501039]
[1734445213090,0.8549597,3997.2,3995.5,0.7836]
[1734445213396,1.0294958,3997.5,3995.5,0.7836]
[1734445213606,2.50159,3997.5,3995.7,0.7836]
[1734445214111,1.0294958,3997.6,3995.7,0.7836]
[1734445214314,5.66884798,3997.6,3995.7,0.7836]
[1734445214457,1.28272581,3997.5,3995.7,0.7836]
[1734445214820,0.55,3997.6,3995.7,0.7836]
[1734445214958,0.55,3997.4,3995.9,0.7836]
[1734445215298,1.0294958,3997.6,3995.9,0.7836]
[1734445215723,3.68184813,3997.8,3995.9,0.7836]
[1734445215724,2.57289108,3997.8,3996.0,0.7836]
[1734445215876,0.8553816,3997.7,3996.5,0.7606]
[1734445216887,0.8553816,3997.7,3996.6,0.7606]
[1734445217119,0.8553816,3997.7,3996.7,0.66420581]
[1734445217413,0.8553816,3997.7,3996.8,0.7606]
[1734445218075,0.8553816,3997.7,3996.9,0.7606]
[1734445220579,2.57289108,3997.9,3996.9,0.7606]
[1734445221618,3.17276345,3998.2,3996.9,0.7606]
[1734445221979,0.85730706,3998.1,3996.9,0.7606]
[1734445222277,1.0294958,3998.3,3996.9,0.7606]
[1734445222716,3.17273452,3998.2,3996.9,0.7606]
[1734445222923,3.1730502,3998.3,3996.9,0.7606]
[1734445223232,2.1435544,3998.2,3996.9,0.7606]
[1734445223436,1.28613264,3998.2,3997.1,2.3401911]
[1734445223658,1.28613264,3998.3,3997.2,0.7606]
[1734445223935,1.0294958,3998.4,3997.2,0.7606]
[1734445223936,0.85764123,3998.2,3997.2,0.7606]
[1734445224087,1.0294958,3998.4,3997.2,0.7606]
[1734445224489,1.0294958,3998.4,3997.5,2.3401911]
[1734445224740,1.0294958,3998.6,3997.6,0.7606]
[1734445227696,0.9794958,3998.6,3997.6,0.7606]
[1734445228433,2.07008879,3998.7,3997.6,0.7606]
[1734445230033,2.50095,3998.5,3997.6,0.7606]
[1734445230241,1.54339528,3998.8,3997.6,0.7606]
[1734445230544,2.50082,3998.7,3997.6,0.7606]
[1734445230725,4.04414528,3998.8,3997.6,0.7606]
[1734445231120,2.50117,3998.2,3997.6,0.7606]
[1734445232335,0.05255265,3998.1,3997.6,0.7606]
[1734445233367,0.55,3998.4,3997.6,0.7606]
[1734445233579,0.05186418,3998.0,3997.6,0.7606]
[1734445233758,2.50081,3998.7,3997.6,0.7606]
[1734445233959,0.55,3998.6,3997.6,0.7606]
[1734445234273,0.60172586,3998.6,3997.6,0.7606]
[1734445234647,0.05172586,3998.6,3997.6,0.7606]
[1734445235587,3.61348407,3999.0,3997.6,0.7606]
[1734445235873,0.05185011,3998.5,3997.6,0.7606]
[1734445236072,0.8568604,3998.9,3997.6,0.7606]
[1734445236240,0.05183888,3998.4,3997.6,0.7606]
[1734445236442,1.54339528,3999.1,3997.6,0.7606]
[1734445236942,0.55,3998.9,3997.6,0.7606]
[1734445237171,1.54339528,3999.1,3997.6,0.7606]
[1734445237172,0.05170069,3998.8,3997.6,0.7606]
[1734445237473,4.04395528,3999.1,3997.6,0.7606]
[1734445237645,0.05168946,3998.7,3997.6,0.7606]
[1734445237973,1.54339528,3999.1,3997.6,0.7606]
[1734445238172,0.05167822,3998.6,3997.6,0.7606]
[1734445238375,1.54339528,3999.1,3997.8,0.7606]
[1734445238530,0.05026342,3998.5,3997.8,3.7606]
[1734445238737,1.54339528,3999.1,3997.9,0.7606]
[1734445238939,0.05031958,3999.0,3997.9,0.7606]
[1734445239254,0.05031958,3999.0,3998.1,0.7606]
[1734445241384,2.50075,3998.8,3998.1,0.7606]
[1734445241840,0.05041142,3998.7,3998.1,0.7606]
[1734445242451,1.03529629,3999.2,3998.1,0.7606]
[1734445242452,2.50062,3999.0,3998.1,0.7606]
[1734445243086,0.05043389,3998.9,3998.1,0.7606]
[1734445243285,2.50075,3998.8,3998.1,0.7606]
[1734445243642,0.05041142,3998.7,3998.1,0.7606]
[1734445244372,1.03529629,3999.2,3998.1,0.7606]
[1734445244581,0.05040019,3998.6,3998.1,0.7606]
[1734445244756,3.53580629,3999.2,3998.1,0.7606]
[1734445245084,2.55092092,3999.1,3998.1,0.7606]
[1734445245295,0.05035092,3999.1,3998.1,0.7606]
[1734445246046,2.55092092,3999.1,3998.1,0.7606]
[1734445246999,0.05035092,3999.1,3998.1,0.7606]
[1734445248604,2.55091092,3999.1,3998.1,0.7606]
[1734445248777,3.05063,3999.0,3998.1,0.7606]
[1734445248976,3.10103998,3999.0,3998.1,0.7606]
[1734445249200,2.50069,3998.9,3998.1,0.7606]
[1734445249404,2.50112,3998.2,3997.7,0.7894]
[1734445249762,0.05036408,3998.1,3997.7,0.7894]
[1734445251093,2.55156408,3998.1,3997.7,0.7894]
[1734445251291,0.05036408,3998.1,3997.7,0.7894]
[1734445251676,2.50107,3998.3,3997.7,0.7894]
[1734445251877,0.05026248,3998.0,3997.7,0.7894]
[1734445252206,3.91518418,3999.3,3997.7,0.7894]
[1734445252207,0.04998008,3997.9,3997.7,0.7894]
[1734445252413,0.7516,3999.1,3997.7,0.7894]
[1734445252709,1.03529629,3999.3,3997.7,0.7894]
[1734445252710,1.03529629,3998.6,3997.7,0.7894]
[1734445252863,6.71303947,3999.0,3997.7,0.7894]
[1734445252864,1.03529629,3998.7,3997.7,0.7894]
[1734445253061,0.05004749,3998.5,3997.7,0.7894]
[1734445253298,1.03529629,3998.6,3997.7,0.7894]
[1734445253490,0.05004129,3998.4,3997.7,0.7894]
[1734445253702,0.05005252,3998.5,3997.7,0.7894]
[1734445254018,0.05004129,3998.4,3997.7,0.7894]
[1734445254320,1.03529629,3998.6,3997.7,0.7894]
[1734445254523,0.05003006,3998.3,3997.7,0.7894]
[1734445254720,1.03529629,3998.6,3997.7,0.7894]
[1734445254906,0.05001882,3998.2,3997.7,0.7894]
[1734445255216,0.05000758,3998.1,3997.7,0.7894]
[1734445255519,1.03529629,3998.7,3997.8,0.8073]
[1734445255723,1.03529629,3998.7,3998.0,0.8073]
[1734445255924,0.05031986,3998.6,3998.0,0.8073]
[1734445256428,0.85855119,3998.5,3998.0,0.8073]
[1734445256624,0.90885981,3998.5,3998.0,0.8073]
[1734445256826,0.05030862,3998.5,3998.2,0.8073]
[1734445256972,1.03529629,3999.0,3998.4,0.8073]
[1734445257277,0.05044392,3998.9,3998.7,0.8073]
[1734445257706,1.03529629,3999.3,3998.7,0.8073]
[1734445257886,0.05043269,3998.8,3998.7,0.8073]
[1734445258104,0.85910757,3999.2,3998.7,0.8073]
[1734445258275,0.05043269,3998.8,3998.7,0.8073]
[1734445258477,2.14875571,3998.8,3998.7,0.8073]
[1734445258701,1.33973811,3998.8,3998.7,0.8073]
[1734445258906,0.05064356,3998.8,3998.7,0.8073]
[1734445259155,0.91009811,3998.8,3998.7,0.8073]
[1734445259453,0.05071882,3998.8,3998.7,0.8073]
[1734445259619,1.03529629,3999.0,3998.7,0.8073]
[1734445259958,0.05071882,3998.8,3998.7,0.8073]
[1734445260149,0.85962406,3998.8,3998.7,0.8073]
[1734445260353,0.91034288,3998.8,3998.7,0.8073]
[1734445260649,0.05071882,3998.8,3998.7,0.8073]
[1734445260807,2.57869157,3999.1,3998.7,0.8073]
[1734445261007,4.21958177,3999.4,3998.7,0.8073]
[1734445261008,0.05071882,3998.8,3998.7,0.8073]
[1734445261223,0.86018474,3998.8,3998.7,0.8073]
[1734445261432,0.05071882,3998.8,3998.7,0.8073]
[1734445261628,2.37608942,3998.8,3998.7,0.8073]
[1734445261871,0.91090356,3998.8,3998.7,0.8073]
[1734445262259,0.9108383,3998.8,3998.7,0.8073]
[1734445262635,0.05071882,3998.8,3998.7,0.8073]
[1734445263058,1.03529629,3999.1,3998.7,0.8073]
[1734445263396,4.31641031,3999.7,3998.7,0.8073]
[1734445263397,0.05077906,3998.8,3998.7,0.8073]
[1734445263539,1.03529629,3999.0,3998.7,0.8073]
[1734445263739,1.08609781,3999.0,3998.7,0.8073]
[1734445263964,0.05080152,3999.0,3998.7,0.8073]
[1734445264332,1.03529629,3999.2,3998.7,0.8073]
[1734445264669,0.05058767,3999.1,3998.7,0.8073]
[1734445264840,0.05058767,3999.1,3998.8,0.804]
[1734445265048,1.03529629,3999.4,3999.0,2.33955911]
[1734445265244,1.03529629,3999.6,3999.1,3.0]
[1734445265568,1.03529629,3999.6,3999.0,5.33955911]
[1734445265569,1.03529629,4000.0,3999.6,0.804]
[1734445265770,1.03529629,4000.6,3999.9,0.804]
[1734445266324,2.57869157,4000.7,4000.0,0.804]
[1734445266640,0.85961825,4000.6,4000.0,1.41835591]
[1734445266837,1.03529629,4000.8,4000.0,1.41835591]
[1734445267039,2.32472907,4000.7,4000.0,1.41835591]
[1734445267243,0.05051413,4000.7,4000.2,0.804]
[1734445267978,0.05052799,4000.6,4000.2,0.804]
[1734445268278,1.03529629,4001.0,4000.2,0.804]
[1734445268579,0.05051676,4000.5,4000.2,0.804]
[1734445268816,0.05050554,4000.4,4000.2,1.24583559]
[1734445269269,1.03529629,4001.1,4000.2,1.24583559]
[1734445269465,0.05049432,4000.3,4000.2,1.24583559]
[1734445269666,1.03529629,4001.1,4000.2,1.24583559]
[1734445269882,0.05049432,4000.3,4000.2,1.24583559]
[1734445270117,1.03529629,4001.1,4000.2,1.24583559]
[1734445270418,1.03529629,4001.2,4000.3,0.18601915]
[1734445270714,0.0505829,4001.0,4000.3,0.18601915]
[1734445270881,1.03529629,4001.2,4000.3,0.18601915]
[1734445270882,0.05059412,4001.1,4000.3,0.18601915]
[1734445271210,0.05057168,4000.9,4000.3,0.18601915]
[1734445271394,0.0505829,4001.0,4000.4,0.804]
[1734445271600,0.0505829,4001.0,4000.3,3.18601915]
[1734445271601,0.0505829,4001.0,4000.7,3.804]
[1734445271802,1.03529629,4001.7,4000.8,0.804]
[1734445271973,1.03529629,4001.8,4000.8,0.804]
[1734445272171,1.03529629,4001.9,4000.9,2.33955911]
[1734445272385,0.05156554,4001.8,4001.1,0.804]
[1734445272714,3.17967602,4002.1,4001.1,0.804]
[1734445273513,0.05176347,4002.0,4001.1,0.804]
[1734445274261,0.05176347,4002.0,4001.7,2.33955911]
[1734445274466,0.05176347,4002.0,4001.8,3.804]
[1734445274718,0.05176347,4002.0,4001.9,1.41835591]
[1734445275571,0.05176347,4002.0,4001.9,0.804]
[1734445276522,2.07008879,4002.4,4001.9,0.804]
[1734445276726,2.07008879,4002.4,4002.3,2.33955911]
[1734445276885,2.07008879,4002.4,4002.3,6.13314009]
[1734445277091,2.07008879,4002.4,4002.3,11.03825711]
[1734445277323,2.07008879,4002.4,4002.3,10.57378538]
[1734445277490,2.07008879,4002.4,4002.3,10.28233517]
[1734445277687,2.07008879,4002.4,4002.3,7.82303917]
[1734445278080,2.07008879,4002.4,4002.3,5.3549679]
[1734445278275,2.49725,4004.4,4002.4,3.0]
[1734445278475,2.4975,4004.0,4002.5,0.7686]
[1734445278719,0.55,4004.8,4002.5,0.7686]
[1734445278928,2.49731,4004.3,4002.5,0.7686]
[1734445279091,2.49747,4004.1,4002.5,0.7686]
[1734445279475,0.7831,4004.4,4002.9,3.7686]
[1734445279679,2.58502581,4005.4,4002.9,3.7686]
[1734445279680,0.7831,4004.7,4003.0,0.7686]
[1734445280101,0.7831,4004.7,4003.0,0.79357603]
[1734445280316,2.49713,4004.6,4003.0,0.7686]
[1734445280515,0.7831,4004.7,4003.0,0.7686]
[1734445280674,2.49712,4004.6,4003.0,0.7686]